[Event "*** SCC Grand Prix: Titled Tuesday Blitz"]
[Site "Chess.com"]
[Date "2020.08.04"]
[Round "3"]
[White "Micki-taryan"]
[Black "praveenb2002"]
[Result "1-0"]
[WhiteElo "3058"]
[BlackElo "2779"]
[TimeControl "180+1"]
[EndTime "14:11:36 PDT"]
[Termination "Micki-taryan won on time"]

1. e3 {[%clk 0:03:00.9]} 1... Nf6 {[%clk 0:02:56.7]} 2. Nf3 {[%clk 0:03:00.9]}
2... g6 {[%clk 0:02:56.6]} 3. b3 {[%clk 0:03:01.1]} 3... Bg7 {[%clk 0:02:56.6]}
4. Bb2 {[%clk 0:03:02]} 4... O-O {[%clk 0:02:55.9]} 5. c4 {[%clk 0:03:02.4]}
5... d6 {[%clk 0:02:53.7]} 6. d4 {[%clk 0:03:02.5]} 6... Nbd7 {[%clk 0:02:53.7]}
7. Be2 {[%clk 0:03:02.6]} 7... e5 {[%clk 0:02:53.1]} 8. dxe5 {[%clk 0:03:03.5]}
8... Ng4 {[%clk 0:02:52.9]} 9. Nc3 {[%clk 0:03:02.8]} 9... Ngxe5 {[%clk
0:02:49.8]} 10. Nxe5 {[%clk 0:03:02.3]} 10... Nxe5 {[%clk 0:02:49.6]} 11. Qd2
{[%clk 0:02:55]} 11... Re8 {[%clk 0:02:48.7]} 12. O-O-O {[%clk 0:02:53.3]} 12...
a5 {[%clk 0:02:43.9]} 13. h3 {[%clk 0:02:48.2]} 13... Be6 {[%clk 0:02:35.1]} 14.
f4 {[%clk 0:02:47.3]} 14... Nd7 {[%clk 0:02:33.4]} 15. Bd3 {[%clk 0:02:45.8]}
15... Nc5 {[%clk 0:02:29.2]} 16. Bc2 {[%clk 0:02:46.3]} 16... a4 {[%clk
0:02:29.1]} 17. g4 {[%clk 0:02:44.2]} 17... axb3 {[%clk 0:01:30]} 18. axb3
{[%clk 0:02:45.1]} 18... c6 {[%clk 0:01:15.2]} 19. f5 {[%clk 0:02:13.6]} 19...
Bd7 {[%clk 0:01:15]} 20. fxg6 {[%clk 0:02:06.8]} 20... hxg6 {[%clk 0:01:11.1]}
21. b4 {[%clk 0:01:51.7]} 21... Na6 {[%clk 0:01:10.6]} 22. Qxd6 {[%clk
0:01:47.5]} 22... Rxe3 {[%clk 0:00:49.7]} 23. Ne4 {[%clk 0:01:32.3]} 23... Bxb2+
{[%clk 0:00:17.5]} 24. Kxb2 {[%clk 0:01:33.2]} 24... Nxb4 {[%clk 0:00:10.6]} 25.
Qxb4 {[%clk 0:01:26]} 25... Rea3 {[%clk 0:00:04.9]} 26. Bb3 {[%clk 0:01:22.4]}
26... Kg7 {[%clk 0:00:02.5]} 27. Qc3+ {[%clk 0:01:22.3]} 27... Kf8 {[%clk
0:00:01.4]} 28. Qh8+ {[%clk 0:01:20.7]} 28... Ke7 {[%clk 0:00:01.8]} 29. Qxd8+
{[%clk 0:01:20.7]} 29... Kxd8 {[%clk 0:00:01.9]} 30. Nc5 {[%clk 0:01:20.6]} 1-0

[Event "*** SCC Grand Prix: Titled Tuesday Blitz"]
[Site "Chess.com"]
[Date "2020.08.04"]
[Round "3"]
[White "Sekar24"]
[Black "Alexander_Moskalenko"]
[Result "0-1"]
[WhiteElo "2456"]
[BlackElo "2800"]
[TimeControl "180+1"]
[EndTime "14:11:37 PDT"]
[Termination "Alexander_Moskalenko won by resignation"]

1. e4 {[%clk 0:03:00.9]} 1... c6 {[%clk 0:02:59.7]} 2. Nf3 {[%clk 0:03:00.8]}
2... d5 {[%clk 0:03:00.3]} 3. Nc3 {[%clk 0:03:01.6]} 3... dxe4 {[%clk
0:02:58.6]} 4. Nxe4 {[%clk 0:03:02.5]} 4... Nf6 {[%clk 0:02:59.3]} 5. Qe2 {[%clk
0:03:03.1]} 5... Nxe4 {[%clk 0:02:58.7]} 6. Qxe4 {[%clk 0:03:04]} 6... Nd7
{[%clk 0:02:59.1]} 7. Bc4 {[%clk 0:03:02.6]} 7... Nf6 {[%clk 0:02:59.5]} 8. Ne5
{[%clk 0:03:03.1]} 8... e6 {[%clk 0:03:00.1]} 9. Qe2 {[%clk 0:03:03]} 9... b5
{[%clk 0:03:00.4]} 10. Bd3 {[%clk 0:03:01.8]} 10... Bd6 {[%clk 0:02:57]} 11. a4
{[%clk 0:03:00.4]} 11... Qc7 {[%clk 0:02:55.5]} 12. Nxc6 {[%clk 0:02:48.7]}
12... b4 {[%clk 0:02:55.4]} 13. Nd4 {[%clk 0:02:39.1]} 13... a6 {[%clk
0:02:48.4]} 14. Nf5 {[%clk 0:02:23.3]} 14... Bc5 {[%clk 0:02:48]} 15. Nxg7+
{[%clk 0:02:00.8]} 15... Kf8 {[%clk 0:02:47.9]} 16. Nh5 {[%clk 0:02:00.8]} 16...
Nxh5 {[%clk 0:02:48.4]} 17. Qxh5 {[%clk 0:02:01.4]} 17... Bb7 {[%clk 0:02:49.3]}
18. Rg1 {[%clk 0:01:31.9]} 18... Rg8 {[%clk 0:02:28.7]} 19. Qh6+ {[%clk
0:01:28]} 19... Rg7 {[%clk 0:02:20.9]} 20. Bxh7 {[%clk 0:00:27.1]} 20... Qe5+
{[%clk 0:02:05.3]} 21. Kd1 {[%clk 0:00:17.8]} 21... Bxf2 {[%clk 0:01:59.5]} 22.
Rf1 {[%clk 0:00:17.8]} 22... Ke8 {[%clk 0:01:12.5]} 23. Rxf2 {[%clk 0:00:10.6]}
23... Rxg2 {[%clk 0:01:12.1]} 24. Rxg2 {[%clk 0:00:09.1]} 24... Bf3+ {[%clk
0:01:12.1]} 0-1

[Event "*** SCC Grand Prix: Titled Tuesday Blitz"]
[Site "Chess.com"]
[Date "2020.08.04"]
[Round "3"]
[White "bazar-wokzal"]
[Black "PSvidler"]
[Result "0-1"]
[WhiteElo "2476"]
[BlackElo "2942"]
[TimeControl "180+1"]
[EndTime "14:11:45 PDT"]
[Termination "PSvidler won by resignation"]

1. e4 {[%clk 0:02:25.2]} 1... e5 {[%clk 0:02:46]} 2. Bc4 {[%clk 0:02:24.5]} 2...
Nc6 {[%clk 0:02:44.4]} 3. f4 {[%clk 0:02:24.2]} 3... exf4 {[%clk 0:02:38.1]} 4.
d4 {[%clk 0:02:21.9]} 4... Nf6 {[%clk 0:02:34.4]} 5. Nc3 {[%clk 0:02:21.2]} 5...
Bb4 {[%clk 0:02:23.5]} 6. Qd3 {[%clk 0:02:21]} 6... O-O {[%clk 0:02:19]} 7. Ne2
{[%clk 0:02:17.4]} 7... Bxc3+ {[%clk 0:01:48.9]} 8. bxc3 {[%clk 0:02:13.4]} 8...
Re8 {[%clk 0:01:45]} 9. e5 {[%clk 0:02:04.9]} 9... d5 {[%clk 0:01:44.7]} 10. Bb5
{[%clk 0:02:01.1]} 10... Ne4 {[%clk 0:01:44.6]} 11. Bxf4 {[%clk 0:01:57.8]}
11... Bd7 {[%clk 0:01:44.4]} 12. O-O {[%clk 0:01:56.2]} 12... a6 {[%clk
0:01:44.4]} 13. Bxc6 {[%clk 0:01:53.4]} 13... Bxc6 {[%clk 0:01:45.3]} 14. a4
{[%clk 0:01:48.7]} 14... Qd7 {[%clk 0:01:45.4]} 15. Ng3 {[%clk 0:01:44.5]} 15...
Nxg3 {[%clk 0:01:41.8]} 16. Qxg3 {[%clk 0:01:44.7]} 16... Re6 {[%clk 0:01:42.5]}
17. a5 {[%clk 0:01:39.8]} 17... Bb5 {[%clk 0:01:42.6]} 18. Rf3 {[%clk
0:01:38.8]} 18... b6 {[%clk 0:01:41.8]} 19. axb6 {[%clk 0:01:36.6]} 19... cxb6
{[%clk 0:01:41.8]} 20. h4 {[%clk 0:01:31.3]} 20... Rg6 {[%clk 0:01:41.3]} 21.
Qf2 {[%clk 0:01:28.3]} 21... h5 {[%clk 0:01:34.5]} 22. Rg3 {[%clk 0:01:22.5]}
22... Rxg3 {[%clk 0:01:31.9]} 23. Qxg3 {[%clk 0:01:20.7]} 23... Qf5 {[%clk
0:01:31.9]} 24. Qf2 {[%clk 0:01:06.8]} 24... Bc4 {[%clk 0:01:30]} 25. Re1 {[%clk
0:00:48.2]} 25... a5 {[%clk 0:01:28.4]} 26. e6 {[%clk 0:00:40.7]} 26... fxe6
{[%clk 0:01:12.8]} 27. Re5 {[%clk 0:00:40.7]} 27... Qf7 {[%clk 0:01:12.8]} 28.
Qg3 {[%clk 0:00:19.6]} 28... Rf8 {[%clk 0:01:12]} 29. Be3 {[%clk 0:00:19]} 29...
a4 {[%clk 0:01:11.3]} 30. Rg5 {[%clk 0:00:13.4]} 30... a3 {[%clk 0:01:09.6]} 0-1

[Event "*** SCC Grand Prix: Titled Tuesday Blitz"]
[Site "Chess.com"]
[Date "2020.08.04"]
[Round "3"]
[White "smartinusa"]
[Black "Batsai"]
[Result "1-0"]
[WhiteElo "2573"]
[BlackElo "2368"]
[TimeControl "180+1"]
[EndTime "14:11:45 PDT"]
[Termination "smartinusa won on time"]

1. d4 {[%clk 0:03:00.9]} 1... Nf6 {[%clk 0:02:58.6]} 2. Nf3 {[%clk 0:03:00.5]}
2... d5 {[%clk 0:02:54.8]} 3. c4 {[%clk 0:03:00.3]} 3... e6 {[%clk 0:02:54.9]}
4. Nc3 {[%clk 0:02:59.2]} 4... Bb4 {[%clk 0:02:46.6]} 5. Qa4+ {[%clk 0:02:58.6]}
5... Nc6 {[%clk 0:02:45.6]} 6. e3 {[%clk 0:02:58.3]} 6... O-O {[%clk 0:02:44.1]}
7. Qc2 {[%clk 0:02:57.4]} 7... Ne4 {[%clk 0:02:37.8]} 8. Bd3 {[%clk 0:02:45.4]}
8... f5 {[%clk 0:02:27.3]} 9. O-O {[%clk 0:02:44.4]} 9... g5 {[%clk 0:01:56.8]}
10. cxd5 {[%clk 0:02:43.6]} 10... exd5 {[%clk 0:01:25.2]} 11. Nxd5 {[%clk
0:02:42.9]} 11... Be6 {[%clk 0:01:25.3]} 12. Nxb4 {[%clk 0:02:31.1]} 12... Nxb4
{[%clk 0:01:26.2]} 13. Qd1 {[%clk 0:02:30.5]} 13... Qd5 {[%clk 0:01:07.4]} 14.
Bxe4 {[%clk 0:02:21]} 14... fxe4 {[%clk 0:01:06.1]} 15. Ne5 {[%clk 0:02:21.4]}
15... c5 {[%clk 0:00:58.5]} 16. Bd2 {[%clk 0:02:16.3]} 16... Nd3 {[%clk
0:00:31.8]} 17. Nxd3 {[%clk 0:02:15.2]} 17... exd3 {[%clk 0:00:32.7]} 18. dxc5
{[%clk 0:02:11.6]} 18... Qxc5 {[%clk 0:00:30.9]} 19. Rc1 {[%clk 0:02:10.2]}
19... Qd5 {[%clk 0:00:23.2]} 20. Rc7 {[%clk 0:02:07.9]} 20... Rac8 {[%clk
0:00:19.7]} 21. Rxc8 {[%clk 0:01:57.9]} 21... Rxc8 {[%clk 0:00:20.6]} 22. Bc3
{[%clk 0:01:58.5]} 22... Rd8 {[%clk 0:00:06.9]} 23. Qh5 {[%clk 0:01:46.6]} 23...
d2 {[%clk 0:00:05.8]} 24. Qh6 {[%clk 0:01:27.9]} 24... Rd7 {[%clk 0:00:05.3]}
25. Rd1 {[%clk 0:01:25.8]} 25... Bg4 {[%clk 0:00:04.8]} 26. f3 {[%clk 0:01:22]}
26... Bxf3 {[%clk 0:00:02.5]} 27. gxf3 {[%clk 0:01:21.6]} 27... Qc5 {[%clk
0:00:01.4]} 28. Qe6+ {[%clk 0:01:18.4]} 1-0

[Event "*** SCC Grand Prix: Titled Tuesday Blitz"]
[Site "Chess.com"]
[Date "2020.08.04"]
[Round "3"]
[White "elcandado"]
[Black "saisree"]
[Result "0-1"]
[WhiteElo "2599"]
[BlackElo "2418"]
[TimeControl "180+1"]
[EndTime "14:11:47 PDT"]
[Termination "saisree won by resignation"]

1. d4 {[%clk 0:03:00.9]} 1... Nf6 {[%clk 0:02:58.1]} 2. Bf4 {[%clk 0:03:00.2]}
2... g6 {[%clk 0:02:57.2]} 3. Nc3 {[%clk 0:02:59.5]} 3... d5 {[%clk 0:02:55.1]}
4. e3 {[%clk 0:02:59]} 4... Bg7 {[%clk 0:02:54.6]} 5. h4 {[%clk 0:02:58.6]} 5...
Bg4 {[%clk 0:02:44.9]} 6. Be2 {[%clk 0:02:48.8]} 6... Bxe2 {[%clk 0:02:43.3]} 7.
Qxe2 {[%clk 0:02:46.3]} 7... c6 {[%clk 0:02:32.3]} 8. Nf3 {[%clk 0:02:43.1]}
8... Nbd7 {[%clk 0:02:27.9]} 9. Ne5 {[%clk 0:02:42]} 9... Qa5 {[%clk 0:02:20.5]}
10. O-O {[%clk 0:02:34]} 10... O-O {[%clk 0:02:15.9]} 11. Bh2 {[%clk 0:02:24.7]}
11... Nxe5 {[%clk 0:02:10]} 12. Bxe5 {[%clk 0:02:23.7]} 12... h5 {[%clk
0:01:59]} 13. a3 {[%clk 0:02:12.1]} 13... Nd7 {[%clk 0:01:54.8]} 14. Bxg7 {[%clk
0:02:09.5]} 14... Kxg7 {[%clk 0:01:54.3]} 15. e4 {[%clk 0:02:04.6]} 15... dxe4
{[%clk 0:01:38.4]} 16. Qxe4 {[%clk 0:01:59.9]} 16... e6 {[%clk 0:01:38.3]} 17.
Rad1 {[%clk 0:01:48]} 17... Rad8 {[%clk 0:01:31.2]} 18. Rfe1 {[%clk 0:01:44.6]}
18... Rfe8 {[%clk 0:01:30.8]} 19. Qf4 {[%clk 0:01:37.4]} 19... Nf6 {[%clk
0:01:17.2]} 20. Re5 {[%clk 0:01:26.7]} 20... Qc7 {[%clk 0:01:17.2]} 21. Qf3
{[%clk 0:00:46.9]} 21... Ng4 {[%clk 0:01:14.4]} 22. Rde1 {[%clk 0:00:15.6]}
22... Rxd4 {[%clk 0:01:00]} 23. R5e4 {[%clk 0:00:15.2]} 23... Qh2+ {[%clk
0:00:54.7]} 24. Kf1 {[%clk 0:00:14.9]} 24... Rd2 {[%clk 0:00:55.2]} 25. g3
{[%clk 0:00:13.6]} 25... Rxf2+ {[%clk 0:00:54.1]} 0-1

[Event "*** SCC Grand Prix: Titled Tuesday Blitz"]
[Site "Chess.com"]
[Date "2020.08.04"]
[Round "3"]
[White "SantoBlue"]
[Black "elohunter1999"]
[Result "1-0"]
[WhiteElo "2910"]
[BlackElo "2472"]
[TimeControl "180+1"]
[EndTime "14:11:49 PDT"]
[Termination "SantoBlue won by resignation"]

1. e4 {[%clk 0:03:00.9]} 1... e5 {[%clk 0:02:59.9]} 2. Nf3 {[%clk 0:03:00.6]}
2... Nf6 {[%clk 0:03:00.3]} 3. Nc3 {[%clk 0:02:56.7]} 3... Nc6 {[%clk
0:02:56.5]} 4. a3 {[%clk 0:02:56.3]} 4... Be7 {[%clk 0:02:53]} 5. Bb5 {[%clk
0:02:52.3]} 5... O-O {[%clk 0:02:48.1]} 6. O-O {[%clk 0:02:43.1]} 6... d6 {[%clk
0:02:41.4]} 7. Bxc6 {[%clk 0:02:42.2]} 7... bxc6 {[%clk 0:02:41.4]} 8. d4 {[%clk
0:02:42.5]} 8... exd4 {[%clk 0:02:40.9]} 9. Nxd4 {[%clk 0:02:42]} 9... Bd7
{[%clk 0:02:41.3]} 10. Re1 {[%clk 0:02:41.8]} 10... Re8 {[%clk 0:02:36.8]} 11.
h3 {[%clk 0:02:41.9]} 11... c5 {[%clk 0:02:34.1]} 12. Nf3 {[%clk 0:02:40]} 12...
Bf8 {[%clk 0:02:31.8]} 13. e5 {[%clk 0:02:26.6]} 13... dxe5 {[%clk 0:02:30.5]}
14. Nxe5 {[%clk 0:02:25.5]} 14... Bf5 {[%clk 0:02:26.2]} 15. Qf3 {[%clk
0:01:41.2]} 15... Bxc2 {[%clk 0:02:26]} 16. Bg5 {[%clk 0:01:41.1]} 16... Bd6
{[%clk 0:02:21.9]} 17. Ng4 {[%clk 0:01:35.5]} 17... Rxe1+ {[%clk 0:01:48.3]} 18.
Rxe1 {[%clk 0:01:34.3]} 18... Bg6 {[%clk 0:01:46.7]} 19. Nd5 {[%clk 0:01:27.4]}
19... Rb8 {[%clk 0:01:30.6]} 20. Ndxf6+ {[%clk 0:01:24.1]} 20... gxf6 {[%clk
0:01:30.5]} 21. Bxf6 {[%clk 0:01:21.9]} 21... Qd7 {[%clk 0:01:23.5]} 22. Bc3
{[%clk 0:01:22]} 22... Qd8 {[%clk 0:00:33.6]} 23. Nf6+ {[%clk 0:01:15.3]} 23...
Kh8 {[%clk 0:00:18.3]} 24. Re8+ {[%clk 0:01:11.6]} 24... Qxe8 {[%clk 0:00:16.6]}
25. Nxe8+ {[%clk 0:01:11.7]} 25... Kg8 {[%clk 0:00:17.2]} 26. Qf6 {[%clk
0:01:10.6]} 26... Kf8 {[%clk 0:00:02.8]} 27. Nxd6 {[%clk 0:01:10.7]} 27... cxd6
{[%clk 0:00:02.4]} 28. Qxd6+ {[%clk 0:01:04]} 1-0

[Event "*** SCC Grand Prix: Titled Tuesday Blitz"]
[Site "Chess.com"]
[Date "2020.08.04"]
[Round "3"]
[White "csati17"]
[Black "Grandmaster2B"]
[Result "1-0"]
[WhiteElo "2583"]
[BlackElo "2378"]
[TimeControl "180+1"]
[EndTime "14:11:49 PDT"]
[Termination "csati17 won by resignation"]

1. c4 {[%clk 0:03:00.9]} 1... Nf6 {[%clk 0:02:58.6]} 2. Nc3 {[%clk 0:03:00]}
2... e6 {[%clk 0:02:59]} 3. e4 {[%clk 0:03:00]} 3... d5 {[%clk 0:02:59.1]} 4.
cxd5 {[%clk 0:03:00.9]} 4... exd5 {[%clk 0:02:58.9]} 5. e5 {[%clk 0:03:01.8]}
5... Ne4 {[%clk 0:02:48.3]} 6. Nf3 {[%clk 0:03:01.4]} 6... Nc6 {[%clk
0:02:47.5]} 7. Bb5 {[%clk 0:02:52]} 7... Bc5 {[%clk 0:02:42.9]} 8. O-O {[%clk
0:02:48.8]} 8... O-O {[%clk 0:02:41.4]} 9. d4 {[%clk 0:02:43.5]} 9... Bb6 {[%clk
0:02:37.5]} 10. h3 {[%clk 0:02:38]} 10... Nxc3 {[%clk 0:02:20.1]} 11. bxc3
{[%clk 0:02:37.7]} 11... Bd7 {[%clk 0:02:16.3]} 12. Bd3 {[%clk 0:02:35.4]} 12...
f6 {[%clk 0:02:11.1]} 13. exf6 {[%clk 0:02:02.2]} 13... Qxf6 {[%clk 0:02:12]}
14. Bg5 {[%clk 0:01:54.6]} 14... Qf7 {[%clk 0:02:10.5]} 15. Bh4 {[%clk
0:01:53.5]} 15... Bf5 {[%clk 0:02:05.4]} 16. Bb5 {[%clk 0:01:43.6]} 16... Be4
{[%clk 0:01:50.4]} 17. Ng5 {[%clk 0:01:38.1]} 17... Qf4 {[%clk 0:01:47.7]} 18.
g3 {[%clk 0:01:22.7]} 18... Qf5 {[%clk 0:01:32.5]} 19. Nxe4 {[%clk 0:01:08.3]}
19... Qxe4 {[%clk 0:01:33.4]} 20. Bd3 {[%clk 0:01:05]} 20... Qf3 {[%clk
0:01:30.3]} 21. Qc2 {[%clk 0:01:04.7]} 21... h6 {[%clk 0:01:24.5]} 22. Bg6
{[%clk 0:00:34.1]} 22... Nd8 {[%clk 0:00:55]} 23. Rae1 {[%clk 0:00:29.7]} 23...
Nf7 {[%clk 0:00:51.5]} 24. Re3 {[%clk 0:00:28.1]} 1-0

[Event "*** SCC Grand Prix: Titled Tuesday Blitz"]
[Site "Chess.com"]
[Date "2020.08.04"]
[Round "3"]
[White "j_coca"]
[Black "AnonymousBread"]
[Result "0-1"]
[WhiteElo "2308"]
[BlackElo "2534"]
[TimeControl "180+1"]
[EndTime "14:11:55 PDT"]
[Termination "AnonymousBread won by resignation"]

1. f4 {[%clk 0:03:00.9]} 1... Nc6 {[%clk 0:02:58]} 2. Nf3 {[%clk 0:03:00.7]}
2... Nf6 {[%clk 0:02:57.3]} 3. e3 {[%clk 0:02:59.9]} 3... d6 {[%clk 0:02:56.6]}
4. d4 {[%clk 0:03:00.8]} 4... Bg4 {[%clk 0:02:55.6]} 5. c3 {[%clk 0:03:00.4]}
5... e5 {[%clk 0:02:55.7]} 6. Be2 {[%clk 0:02:59.9]} 6... e4 {[%clk 0:02:53.7]}
7. Nfd2 {[%clk 0:02:59.6]} 7... Bxe2 {[%clk 0:02:53.7]} 8. Qxe2 {[%clk
0:03:00.5]} 8... d5 {[%clk 0:02:54.3]} 9. O-O {[%clk 0:03:00.6]} 9... Qd7 {[%clk
0:02:51]} 10. a3 {[%clk 0:02:58.6]} 10... O-O-O {[%clk 0:02:51.2]} 11. c4 {[%clk
0:02:58.6]} 11... Ne7 {[%clk 0:02:49.4]} 12. Nc3 {[%clk 0:02:58.1]} 12... dxc4
{[%clk 0:02:45.5]} 13. Nxc4 {[%clk 0:02:58]} 13... Nf5 {[%clk 0:02:45.2]} 14.
Ne5 {[%clk 0:02:57.3]} 14... Qe8 {[%clk 0:02:43.9]} 15. b4 {[%clk 0:02:54.2]}
15... g6 {[%clk 0:02:39.3]} 16. Bd2 {[%clk 0:02:54]} 16... Bd6 {[%clk
0:02:35.2]} 17. Rfc1 {[%clk 0:02:51.1]} 17... h5 {[%clk 0:02:26.5]} 18. Nb5
{[%clk 0:02:50.7]} 18... Kb8 {[%clk 0:02:23.4]} 19. a4 {[%clk 0:02:48.8]} 19...
a6 {[%clk 0:02:21.5]} 20. Na3 {[%clk 0:02:44.8]} 20... g5 {[%clk 0:02:15.4]} 21.
b5 {[%clk 0:02:39.9]} 21... gxf4 {[%clk 0:02:13.1]} 22. bxa6 {[%clk 0:02:39.8]}
22... f3 {[%clk 0:01:45.4]} 23. gxf3 {[%clk 0:02:21.7]} 23... exf3 {[%clk
0:01:43.4]} 24. Qxf3 {[%clk 0:02:19.5]} 24... c6 {[%clk 0:01:33]} 25. Nxc6+
{[%clk 0:02:03.4]} 25... bxc6 {[%clk 0:01:27.1]} 26. Rab1+ {[%clk 0:02:03.5]}
26... Ka8 {[%clk 0:01:22]} 27. Qxf5 {[%clk 0:01:54]} 27... Rg8+ {[%clk
0:01:21.7]} 28. Kh1 {[%clk 0:01:53.5]} 28... Qe4+ {[%clk 0:01:16.7]} 29. Qxe4
{[%clk 0:01:52.8]} 29... Nxe4 {[%clk 0:01:17.6]} 30. Be1 {[%clk 0:01:48.6]}
30... Bxa3 {[%clk 0:01:17.8]} 31. Rxc6 {[%clk 0:01:48.3]} 31... Rg5 {[%clk
0:01:01.3]} 32. Bh4 {[%clk 0:01:33.6]} 32... Rg4 {[%clk 0:01:01.6]} 33. Be1
{[%clk 0:01:11.8]} 33... Rdg8 {[%clk 0:01:00.4]} 34. Bg3 {[%clk 0:01:07.3]}
34... h4 {[%clk 0:01:00.1]} 35. a7 {[%clk 0:00:59.9]} 35... hxg3 {[%clk
0:00:54.3]} 36. Rb8+ {[%clk 0:00:58.8]} 36... Rxb8 {[%clk 0:00:54]} 37. axb8=Q+
{[%clk 0:00:59.7]} 37... Kxb8 {[%clk 0:00:54.6]} 38. hxg3 {[%clk 0:00:59]} 38...
Rxg3 {[%clk 0:00:52]} 39. a5 {[%clk 0:00:57.4]} 39... Bd6 {[%clk 0:00:47.1]} 40.
a6 {[%clk 0:00:51.7]} 40... Nf2+ {[%clk 0:00:40.9]} 41. Kh2 {[%clk 0:00:51.4]}
41... Rg6+ {[%clk 0:00:41.5]} 42. Rxd6 {[%clk 0:00:49.7]} 42... Rxd6 {[%clk
0:00:42.4]} 0-1

[Event "*** SCC Grand Prix: Titled Tuesday Blitz"]
[Site "Chess.com"]
[Date "2020.08.04"]
[Round "3"]
[White "BillCoe"]
[Black "Semen_Khanin"]
[Result "0-1"]
[WhiteElo "2139"]
[BlackElo "2789"]
[TimeControl "180+1"]
[EndTime "14:12:00 PDT"]
[Termination "Semen_Khanin won by resignation"]

1. e4 {[%clk 0:03:00.9]} 1... c5 {[%clk 0:02:59.1]} 2. Nf3 {[%clk 0:03:01]} 2...
e6 {[%clk 0:02:59.6]} 3. d4 {[%clk 0:03:01.2]} 3... cxd4 {[%clk 0:03:00.5]} 4.
Nxd4 {[%clk 0:03:00.3]} 4... Nc6 {[%clk 0:03:01.1]} 5. Be3 {[%clk 0:02:59]} 5...
Qc7 {[%clk 0:03:00.6]} 6. Bd3 {[%clk 0:02:58.6]} 6... a6 {[%clk 0:02:58.4]} 7.
O-O {[%clk 0:02:58.4]} 7... Nf6 {[%clk 0:02:55.9]} 8. c4 {[%clk 0:02:56.9]} 8...
Ne5 {[%clk 0:02:52.2]} 9. Qe2 {[%clk 0:02:53.5]} 9... Bc5 {[%clk 0:02:47.8]} 10.
b3 {[%clk 0:02:50.8]} 10... Neg4 {[%clk 0:02:46]} 11. g3 {[%clk 0:02:47.4]}
11... Nxe3 {[%clk 0:02:30.8]} 12. fxe3 {[%clk 0:02:45.5]} 12... h5 {[%clk
0:02:29]} 13. Nd2 {[%clk 0:02:33.7]} 13... h4 {[%clk 0:02:28.8]} 14. Qf3 {[%clk
0:02:30]} 14... hxg3 {[%clk 0:02:26.3]} 15. hxg3 {[%clk 0:02:30.1]} 15... Qe5
{[%clk 0:02:19.4]} 16. Kg2 {[%clk 0:02:20.3]} 16... d6 {[%clk 0:01:51]} 17. Rh1
{[%clk 0:02:17.2]} 17... Rf8 {[%clk 0:01:50.9]} 18. Rad1 {[%clk 0:01:50.2]}
18... Bd7 {[%clk 0:01:49.7]} 19. Qf4 {[%clk 0:01:33.5]} 19... g5 {[%clk
0:01:35.5]} 20. Qf2 {[%clk 0:01:25.6]} 20... Ng4 {[%clk 0:01:30.9]} 21. Qe2
{[%clk 0:01:12.7]} 21... Nxe3+ {[%clk 0:01:27]} 22. Qxe3 {[%clk 0:01:13]} 22...
Bxd4 {[%clk 0:01:27]} 23. Qe2 {[%clk 0:01:12.8]} 23... g4 {[%clk 0:01:14.6]} 24.
Qxg4 {[%clk 0:01:07.7]} 24... O-O-O {[%clk 0:01:11.3]} 25. Nf3 {[%clk
0:01:05.2]} 25... Qc5 {[%clk 0:01:11]} 26. Nxd4 {[%clk 0:01:03.5]} 26... Qxd4
{[%clk 0:01:11]} 27. Qf3 {[%clk 0:00:54.9]} 27... Bc6 {[%clk 0:01:10.2]} 28.
Rhe1 {[%clk 0:00:41.4]} 28... f5 {[%clk 0:01:03.2]} 29. Qf2 {[%clk 0:00:41]}
29... Qe5 {[%clk 0:00:58.8]} 30. Bc2 {[%clk 0:00:30.4]} 30... fxe4 {[%clk
0:00:57.2]} 31. Qe2 {[%clk 0:00:27.5]} 31... e3+ {[%clk 0:00:56.8]} 0-1

[Event "*** SCC Grand Prix: Titled Tuesday Blitz"]
[Site "Chess.com"]
[Date "2020.08.04"]
[Round "3"]
[White "AndrewDGreen"]
[Black "GalperinPlaton"]
[Result "0-1"]
[WhiteElo "2392"]
[BlackElo "2614"]
[TimeControl "180+1"]
[EndTime "14:12:03 PDT"]
[Termination "GalperinPlaton won by resignation"]

1. d4 {[%clk 0:02:56.2]} 1... Nf6 {[%clk 0:02:59.5]} 2. Nf3 {[%clk 0:02:54.9]}
2... e6 {[%clk 0:03:00.4]} 3. Bf4 {[%clk 0:02:52]} 3... b6 {[%clk 0:02:58.5]} 4.
e3 {[%clk 0:02:50.7]} 4... Bb7 {[%clk 0:02:59.1]} 5. Nbd2 {[%clk 0:02:51]} 5...
d6 {[%clk 0:02:59.7]} 6. h3 {[%clk 0:02:48.1]} 6... Nbd7 {[%clk 0:03:00]} 7. Be2
{[%clk 0:02:46.6]} 7... h6 {[%clk 0:03:00.6]} 8. Bh2 {[%clk 0:02:46.8]} 8... g5
{[%clk 0:03:00.6]} 9. a4 {[%clk 0:02:37.6]} 9... a6 {[%clk 0:02:58.6]} 10. a5
{[%clk 0:02:34.4]} 10... b5 {[%clk 0:02:58.2]} 11. c4 {[%clk 0:02:34.2]} 11...
bxc4 {[%clk 0:02:59.1]} 12. Nxc4 {[%clk 0:02:33.9]} 12... Rg8 {[%clk 0:02:58.3]}
13. Nfd2 {[%clk 0:02:26.1]} 13... Bxg2 {[%clk 0:02:57.5]} 14. Rg1 {[%clk
0:02:22.8]} 14... Bxh3 {[%clk 0:02:56.9]} 15. Qa4 {[%clk 0:02:19]} 15... Qb8
{[%clk 0:02:50.5]} 16. Bf3 {[%clk 0:02:09.2]} 16... d5 {[%clk 0:02:49.9]} 17.
Ne5 {[%clk 0:02:05.5]} 17... Qb5 {[%clk 0:02:50.2]} 18. Qc2 {[%clk 0:02:00.5]}
18... Bd6 {[%clk 0:02:46.2]} 19. Be2 {[%clk 0:01:51.5]} 19... Qb7 {[%clk
0:02:44.3]} 20. Bd3 {[%clk 0:01:27.5]} 20... Rb8 {[%clk 0:02:21]} 21. b3 {[%clk
0:01:22.6]} 21... h5 {[%clk 0:02:18.7]} 22. Qa2 {[%clk 0:01:03]} 22... Ne4
{[%clk 0:02:14.3]} 23. Nxe4 {[%clk 0:00:54.6]} 23... dxe4 {[%clk 0:02:15.2]} 24.
Bc4 {[%clk 0:00:51]} 24... Nxe5 {[%clk 0:02:14.5]} 25. Bxe5 {[%clk 0:00:49.5]}
25... Bxe5 {[%clk 0:02:13.5]} 26. Qa4+ {[%clk 0:00:45.8]} 26... Ke7 {[%clk
0:02:09.2]} 27. dxe5 {[%clk 0:00:46.2]} 27... Bg4 {[%clk 0:02:07.2]} 28. Rc1
{[%clk 0:00:35.7]} 28... c5 {[%clk 0:02:00.4]} 29. Qa3 {[%clk 0:00:33.3]} 29...
Qb4+ {[%clk 0:01:59.8]} 30. Qxb4 {[%clk 0:00:32.7]} 30... Rxb4 {[%clk
0:02:00.7]} 31. Bxa6 {[%clk 0:00:32.9]} 31... Rxb3 {[%clk 0:01:56.3]} 32. Rxg4
{[%clk 0:00:14.2]} 32... hxg4 {[%clk 0:01:53.2]} 33. Rxc5 {[%clk 0:00:14.8]}
33... g3 {[%clk 0:01:48.9]} 34. Rc7+ {[%clk 0:00:11.6]} 34... Kf8 {[%clk
0:01:43.6]} 35. fxg3 {[%clk 0:00:10.9]} 35... Rxe3+ {[%clk 0:01:43.3]} 36. Kd2
{[%clk 0:00:09.7]} 36... Rxg3 {[%clk 0:01:41.9]} 37. Bb7 {[%clk 0:00:08.1]}
37... Ra3 {[%clk 0:01:41.6]} 38. a6 {[%clk 0:00:06.7]} 38... g4 {[%clk
0:01:41.3]} 39. Ke2 {[%clk 0:00:03.1]} 39... g3 {[%clk 0:01:40.5]} 40. Rc8+
{[%clk 0:00:03]} 40... Kg7 {[%clk 0:01:39.8]} 41. Rxg8+ {[%clk 0:00:03.3]} 41...
Kxg8 {[%clk 0:01:40.7]} 42. Kf1 {[%clk 0:00:03.4]} 42... Kg7 {[%clk 0:01:38.8]}
43. Kg2 {[%clk 0:00:02.6]} 43... Kh6 {[%clk 0:01:38.8]} 44. Bxe4 {[%clk
0:00:02.1]} 44... Rxa6 {[%clk 0:01:36.7]} 45. Kxg3 {[%clk 0:00:02.2]} 45... Kg5
{[%clk 0:01:37.1]} 0-1